Workbook

Sheet spectrum
A1: gx | B1: gy | C1: gz | E1: g-factor
A3: 0 | B3: 66 | C3: 100
G4: hyperfine
G5: splitting
G6: constant
E7: 6 | F7: Ax
E8: 13 | F8: Ay
E9: 5 | F9: Az
A11: 8 | B11: 19 | C11: 5
A12: DHx | B12: DHy | C12: DHz | E12: linewidth
A14: =A11/10*3 -> 2.4 | B14: =B11/10*3 -> 5.7 | C14: =C11/10*3 -> 1.5
A18: Y ampl factor | B18: 40
A19: =A3-50 -> -50 | B19: =B3-50 -> 16 | C19: =C3-50 -> 50

Sheet Sheet1 (hidden)
C1: gx | D1: =spectrum!A19 -> -50 | E1: Ax | F1: =spectrum!E7 -> 6 | G1: DHx | H1: =spectrum!A14 -> 2.4
C2: gy | D2: =spectrum!B19 -> 16 | E2: Ay | F2: =spectrum!E8 -> 13 | G2: DHy | H2: =spectrum!B14 -> 5.7
C3: gz | D3: =spectrum!C19 -> 50 | E3: Az | F3: =spectrum!E9 -> 5 | G3: DHz | H3: =spectrum!C14 -> 1.5
C4: Amplit factor | D4: =spectrum!B18 -> 40
A7: y amplitude | F7: =D4 -> 40 | L7: =D4 -> 40
A8: Mean | E8: =D1-F1/2 -> -53 | F8: =D2-F2/2 -> 9.5 | G8: =D3-F3/2 -> 47.5 | K8: =D1+F1/2 -> -47 | L8: =D2+F2/2 -> 22.5 | M8: =D3+F3/2 -> 52.5
A9: Width | E9: =H1 -> 2.4 | F9: =H2 -> 5.7 | G9: =H3 -> 1.5 | K9: =H1 -> 2.4 | L9: =H2 -> 5.7 | M9: =H3 -> 1.5
A10: Field | B10: Total sum | C10: Sum1 | D10: Sum2 | E10: X | F10: Y | G10: Z | H10: Yo | K10: X | L10: Y | M10: Z | N10: Yo
A11: -100 | B11: =C11+D11 -> 5.645612772e-79 | C11: =E11+F11+G11 -> 5.645612772e-79 | D11: =K11+L11+M11 -> 5.931516779e-99 | E11: =NORMDIST(A11,$E$8,$E$9,FALSE) -> 8.774531799e-85 | F11: =(H12-H11)*$F$7 -> 5.645603998e-79 | G11: =-NORMDIST(A11,$G$8,$G$9,FALSE) -> 0 | H11: =NORMDIST(A11,$F$8,$F$9,FALSE) -> 5.105979238e-82 | K11: =NORMDIST(A11,$K$8,$K$9,FALSE) -> 2.107267584e-107 | L11: =(N12-N11)*$L$7 -> 5.931516758e-99 | M11: =-NORMDIST(A11,$M$8,$M$9,FALSE) -> 0 | N11: =NORMDIST(A11,$L$8,$L$9,FALSE) -> 3.553143822e-102
A12: =A11+1 -> -99 | B12: =C12+D12 -> 1.566517371e-77 | C12: =E12+F12+G12 -> 1.566517371e-77 | D12: 2.456123145e-97 | E12: =NORMDIST(A12,$E$8,$E$9,FALSE) -> 2.813501256e-81 | F12: =(H13-H12)*$F$7 -> 1.566236021e-77 | G12: =-NORMDIST(A12,$G$8,$G$9,FALSE) -> 0 | H12: 1.462460792e-80 | K12: =NORMDIST(A12,$K$8,$K$9,FALSE) -> 1.914841948e-103 | L12: =(N13-N12)*$L$7 -> 2.45612123e-97 | M12: =-NORMDIST(A12,$M$8,$M$9,FALSE) -> 0 | N12: =NORMDIST(A12,$L$8,$L$9,FALSE) -> 1.518410628e-100
A13: =A12+1 -> -98 | B13: 4.289122377e-76 | C13: 4.289122377e-76 | D13: 9.863267198e-96 | E13: 7.583539044e-78 | F13: 4.213286987e-76 | G13: 0 | H13: 4.061836133e-79 | K13: 1.462674978e-99 | L13: =(N14-N13)*$L$7 -> 9.861804523e-96 | M13: 0 | N13: 6.292144137e-99
A14: -97 | B14: 2.817306963e-74 | C14: 2.817306963e-74 | D14: 3.933514367e-94 | E14: 1.718297638e-74 | F14: 1.099009325e-74 | G14: 0 | H14: 1.093940108e-77 | K14: 9.392136231e-96 | L14: =(N15-N14)*$L$7 -> 3.839593004e-94 | M14: 0 | N14: 2.528372572e-97
A15: -96 | B15: 3.300650075e-71 | C15: 3.300650075e-71 | D15: 6.519262656e-92 | E15: 3.272853092e-71 | F15: 2.779698277e-73 | G15: 0 | H15: 2.856917323e-76 | K15: 5.069703811e-92 | L15: =(N16-N15)*$L$7 -> 1.449558845e-92 | M15: 0 | N15: 9.851819768e-96
A16: -95 | B16: 5.24098332e-68 | C16: 5.24098332e-68 | D16: 2.305701649e-88 | E16: 5.240301595e-68 | F16: 6.81725136e-72 | G16: 0 | H16: 7.234937424e-75 | K16: 2.300395151e-88 | L16: =(N17-N16)*$L$7 -> 5.306497927e-91 | M16: 0 | N16: 3.72241531e-94
A17: -94 | B17: 7.053240691e-65 | C17: 7.053240691e-65 | D17: 8.774720165e-85 | E17: 7.053224479e-65 | F17: 1.621196764e-70 | G17: 0 | H17: 1.776662214e-73 | K17: 8.774531799e-85 | L17: 1.883654547e-89 | M17: 0 | N17: 1.363848635e-92
A18: -93 | B18: 7.980329114e-62 | C18: 7.980329114e-62 | D18: 2.813501905e-81 | E18: 7.980328741e-62 | F18: 3.738318516e-69 | G18: 0 | H18: 4.230658132e-72 | K18: 2.813501256e-81 | L18: 6.483585406e-88 | M18: 0 | N18: 4.845521232e-91
A19: -92 | B19: 7.590240043e-59 | C19: 7.590240043e-59 | D19: 7.583539065e-78 | E19: 7.590240035e-59 | F19: 8.35853925e-68 | G19: 0 | H19: 9.768862104e-71 | K19: 7.583539044e-78 | L19: 2.16396148e-86 | M19: 0 | N19: 1.669351564e-89
A20: -91 | B20: 6.068647208e-56 | C20: 6.068647208e-56 | D20: 1.718297638e-74 | E20: 6.068647207e-56 | F20: 1.812163237e-66 | G20: 0 | H20: 2.187323434e-69 | K20: 1.718297638e-74 | L20: 7.003315748e-85 | M20: 0 | N20: 5.576838857e-88
A21: -90 | B21: 4.078776649e-53 | C21: 4.078776649e-53 | D21: 3.272853092e-71 | E21: 4.078776649e-53 | F21: 3.809573879e-65 | G21: 0 | H21: 4.749140436e-68 | K21: 3.272853092e-71 | L21: 2.197745225e-83 | M21: 0 | N21: 1.806597326e-86
A22: -89 | B22: 2.304462312e-50 | C22: 2.304462312e-50 | D22: 5.240301595e-68 | E22: 2.304462312e-50 | F22: 7.765455297e-64 | G22: 0 | H22: 9.998848742e-67 | K22: 5.240301595e-68 | L22: 6.687595377e-82 | M22: 0 | N22: 5.675022794e-85
A23: -88 | B23: 1.094487858e-47 | C23: 1.094487858e-47 | D23: 7.053224479e-65 | E23: 1.094487858e-47 | F23: 1.534857795e-62 | G23: 0 | H23: 2.041352312e-65 | K23: 7.053224479e-65 | L23: 1.973245732e-80 | M23: 0 | N23: 1.728649072e-83
A24: -87 | B24: 4.369723313e-45 | C24: 4.369723313e-45 | D24: 7.980328741e-62 | E24: 4.369723313e-45 | F24: 2.941570692e-61 | G24: 0 | H24: 4.041279718e-64 | K24: 7.980328741e-62 | L24: 5.645603998e-79 | M24: 0 | N24: 5.105979238e-82
A25: -86 | B25: 1.466555766e-42 | C25: 1.466555766e-42 | D25: 7.590240035e-59 | E25: 1.466555766e-42 | F25: 5.46637676e-60 | G25: 0 | H25: 7.758054701e-63 | K25: 7.590240035e-59 | L25: 1.566236021e-77 | M25: 0 | N25: 1.462460792e-80
A26: -85 | B26: 4.137565454e-40 | C26: 4.137565454e-40 | D26: 6.068647207e-56 | E26: 4.137565454e-40 | F26: 9.849816239e-59 | G26: 0 | H26: 1.444174737e-61 | K26: 6.068647207e-56 | L26: 4.213286987e-76 | M26: 0 | N26: 4.061836133e-79
A27: -84 | B27: 9.812797237e-38 | C27: 9.812797237e-38 | D27: 4.078776649e-53 | E27: 9.812797237e-38 | F27: 1.720933657e-57 | G27: 0 | H27: 2.606871533e-60 | K27: 4.078776649e-53 | L27: 1.099009325e-74 | M27: 0 | N27: 1.093940108e-77
A28: -83 | B28: 1.956331399e-35 | C28: 1.956331399e-35 | D28: 2.304462312e-50 | E28: 1.956331399e-35 | F28: 2.915457174e-56 | G28: 0 | H28: 4.563021296e-59 | K28: 2.304462312e-50 | L28: 2.779698277e-73 | M28: 0 | N28: 2.856917323e-76
A29: -82 | B29: 3.278639586e-33 | C29: 3.278639586e-33 | D29: 1.094487858e-47 | E29: 3.278639586e-33 | F29: 4.789109996e-55 | G29: 0 | H29: 7.744945065e-58 | K29: 1.094487858e-47 | L29: 6.81725136e-72 | M29: 0 | N29: 7.234937424e-75
A30: -81 | B30: 4.618985336e-31 | C30: 4.618985336e-31 | D30: 4.369723313e-45 | E30: 4.618985336e-31 | F30: 7.627945807e-54 | G30: 0 | H30: 1.27472695e-56 | K30: 4.369723313e-45 | L30: 1.621196764e-70 | M30: 0 | N30: 1.776662214e-73
A31: -80 | B31: 5.470174003e-29 | C31: 5.470174003e-29 | D31: 1.466555766e-42 | E31: 5.470174003e-29 | F31: 1.178050812e-52 | G31: 0 | H31: 2.034459147e-55 | K31: 1.466555766e-42 | L31: 3.738318516e-69 | M31: 0 | N31: 4.230658132e-72
A32: -79 | B32: 5.445745626e-27 | C32: 5.445745626e-27 | D32: 4.137565454e-40 | E32: 5.445745626e-27 | F32: 1.764099348e-51 | G32: 0 | H32: 3.148572944e-54 | K32: 4.137565454e-40 | L32: 8.35853925e-68 | M32: 0 | N32: 9.768862104e-71
A33: -78 | B33: 4.557379704e-25 | C33: 4.557379704e-25 | D33: 9.812797237e-38 | E33: 4.557379704e-25 | F33: 2.561436321e-50 | G33: 0 | H33: 4.725105665e-53 | K33: 9.812797237e-38 | L33: 1.812163237e-66 | M33: 0 | N33: 2.187323434e-69
A34: -77 | B34: 3.206082761e-23 | C34: 3.206082761e-23 | D34: 1.956331399e-35 | E34: 3.206082761e-23 | F34: 3.606155629e-49 | G34: 0 | H34: 6.876101368e-52 | K34: 1.956331399e-35 | L34: 3.809573879e-65 | M34: 0 | N34: 4.749140436e-68
A35: -76 | B35: 1.895989363e-21 | C35: 1.895989363e-21 | D35: 3.278639586e-33 | E35: 1.895989363e-21 | F35: 4.922713615e-48 | G35: 0 | H35: 9.70299921e-51 | K35: 3.278639586e-33 | L35: 7.765455297e-64 | M35: 0 | N35: 9.998848742e-67
A36: -75 | B36: 9.425376697e-20 | C36: 9.425376697e-20 | D36: 4.618985336e-31 | E36: 9.425376697e-20 | F36: 6.515723662e-47 | G36: 0 | H36: 1.327708396e-49 | K36: 4.618985336e-31 | L36: 1.534857795e-62 | M36: 0 | N36: 2.041352312e-65
A37: -74 | B37: 3.938793284e-18 | C37: 3.938793284e-18 | D37: 5.470174003e-29 | E37: 3.938793284e-18 | F37: 8.362140336e-46 | G37: 0 | H37: 1.761701755e-48 | K37: 5.470174003e-29 | L37: 2.941570692e-61 | M37: 0 | N37: 4.041279718e-64
A38: -73 | B38: 1.383659769e-16 | C38: 1.383659769e-16 | D38: 5.445745626e-27 | E38: 1.383659769e-16 | F38: 1.040561203e-44 | G38: 0 | H38: 2.26670526e-47 | K38: 5.445745626e-27 | L38: 5.46637676e-60 | M38: 0 | N38: 7.758054701e-63
A39: -72 | B39: 4.085988038e-15 | C39: 4.085988038e-15 | D39: 4.557379704e-25 | E39: 4.085988038e-15 | F39: 1.255485815e-43 | G39: 0 | H39: 2.828073535e-46 | K39: 4.557379704e-25 | L39: 9.849816239e-59 | M39: 0 | N39: 1.444174737e-61
A40: -71 | B40: 1.014300222e-13 | C40: 1.014300222e-13 | D40: 3.206082761e-23 | E40: 1.014300222e-13 | F40: 1.468752286e-42 | G40: 0 | H40: 3.42152189e-45 | K40: 3.206082761e-23 | L40: 1.720933657e-57 | M40: 0 | N40: 2.606871533e-60
A41: -70 | B41: 2.116594207e-12 | C41: 2.116594205e-12 | D41: 1.895989363e-21 | E41: 2.116594205e-12 | F41: 1.666005252e-41 | G41: 0 | H41: 4.014032903e-44 | K41: 1.895989363e-21 | L41: 2.915457174e-56 | M41: 0 | N41: 4.563021296e-59
A42: -69 | B42: 3.712875087e-11 | C42: 3.712875078e-11 | D42: 9.425376697e-20 | E42: 3.712875078e-11 | F42: 1.832287756e-40 | G42: 0 | H42: 4.566416421e-43 | K42: 9.425376697e-20 | L42: 4.789109996e-55 | M42: 0 | N42: 7.744945065e-58
A43: -68 | B43: 5.475007615e-10 | C43: 5.475007576e-10 | D43: 3.938793284e-18 | E43: 5.475007576e-10 | F43: 1.953884397e-39 | G43: 0 | H43: 5.037361032e-42 | K43: 3.938793284e-18 | L43: 7.627945807e-54 | M43: 0 | N43: 1.27472695e-56
A44: -67 | B44: 6.786733142e-09 | C44: 6.786733003e-09 | D44: 1.383659769e-16 | E44: 6.786733003e-09 | F44: 2.020180714e-38 | G44: 0 | H44: 5.388447095e-41 | K44: 1.383659769e-16 | L44: 1.178050812e-52 | M44: 0 | N44: 2.034459147e-55
A45: -66 | B45: 7.071938594e-08 | C45: 7.071938185e-08 | D45: 4.085988038e-15 | E45: 7.071938185e-08 | F45: 2.025190919e-37 | G45: 0 | H45: 5.589296494e-40 | K45: 4.085988038e-15 | L45: 1.764099348e-51 | M45: 0 | N45: 3.148572944e-54
A46: -65 | B46: 6.194665659e-07 | C46: 6.194664645e-07 | D46: 1.014300222e-13 | E46: 6.194664645e-07 | F46: 1.968449431e-36 | G46: 0 | H46: 5.621906948e-39 | K46: 1.014300222e-13 | L46: 2.561436321e-50 | M46: 0 | N46: 4.725105665e-53
A47: -64 | B47: 4.561408827e-06 | C47: 4.561406711e-06 | D47: 2.116594205e-12 | E47: 4.561406711e-06 | F47: 1.855082189e-35 | G47: 0 | H47: 5.483314271e-38 | K47: 2.116594205e-12 | L47: 3.606155629e-49 | M47: 0 | N47: 6.876101368e-52
A48: -63 | B48: 2.823462458e-05 | C48: 2.823458745e-05 | D48: 3.712875078e-11 | E48: 2.823458745e-05 | F48: 1.695042636e-34 | G48: 0 | H48: 5.186036899e-37 | K48: 3.712875078e-11 | L48: 4.922713615e-48 | M48: 0 | N48: 9.70299921e-51
A49: -62 | B49: 0.0001469154152 | C49: 0.0001469148677 | D49: 5.475007576e-10 | E49: 0.0001469148677 | F49: 1.501670182e-33 | G49: 0 | H49: 4.756210279e-36 | K49: 5.475007576e-10 | L49: 6.515723662e-47 | M49: 0 | N49: 1.327708396e-49
A50: -61 | B50: 0.0006426230352 | C50: 0.0006426162485 | D50: 6.786733003e-09 | E50: 0.0006426162485 | F50: 1.289860468e-32 | G50: 0 | H50: 4.229796483e-35 | K50: 6.786733003e-09 | L50: 8.362140336e-46 | M50: 0 | N50: 1.761701755e-48
A51: -60 | B51: 0.002362937894 | C51: 0.002362867175 | D51: 7.071938185e-08 | E51: 0.002362867175 | F51: 1.074194276e-31 | G51: 0 | H51: 3.647630818e-34 | K51: 7.071938185e-08 | L51: 1.040561203e-44 | M51: 0 | N51: 2.26670526e-47
A52: -59 | B52: 0.007304078005 | C52: 0.007303458539 | D52: 6.194664645e-07 | E52: 0.007303458539 | F52: 8.673461052e-31 | G52: 0 | H52: 3.050248771e-33 | K52: 6.194664645e-07 | L52: 1.255485815e-43 | M52: 0 | N52: 2.828073535e-46
A53: -58 | B53: 0.01898120844 | C53: 0.01897664703 | D53: 4.561406711e-06 | E53: 0.01897664703 | F53: 6.789987668e-30 | G53: 0 | H53: 2.47339014e-32 | K53: 4.561406711e-06 | L53: 1.468752286e-42 | M53: 0 | N53: 3.42152189e-45
A54: -57 | B54: 0.04147704242 | C54: 0.04144880783 | D54: 2.823458745e-05 | E54: 0.04144880783 | F54: 5.153589534e-29 | G54: 0 | H54: 1.944835931e-31 | K54: 2.823458745e-05 | L54: 1.666005252e-41 | M54: 0 | N54: 4.014032903e-44
A55: -56 | B55: 0.07625070045 | C55: 0.07610378558 | D55: 0.0001469148677 | E55: 0.07610378558 | F55: 3.79238269e-28 | G55: 0 | H55: 1.482880977e-30 | K55: 0.0001469148677 | L55: 1.832287756e-40 | M55: 0 | N55: 4.566416421e-43
A56: -55 | B56: 0.1181058977 | C56: 0.1174632814 | D56: 0.0006426162485 | E56: 0.1174632814 | F56: 2.705658873e-27 | G56: 0 | H56: 1.09638377e-29 | K56: 0.0006426162485 | L56: 1.953884397e-39 | M56: 0 | N56: 5.037361032e-42
A57: -54 | B57: 0.1547680198 | C57: 0.1524051527 | D57: 0.002362867175 | E57: 0.1524051527 | F57: 1.871498127e-26 | G57: 0 | H57: 7.860530952e-29 | K57: 0.002362867175 | L57: 2.020180714e-38 | M57: 0 | N57: 5.388447095e-41
A58: -53 | B58: 0.1735294087 | C58: 0.1662259502 | D58: 0.007303458539 | E58: 0.1662259502 | F58: 1.25504121e-25 | G58: 0 | H58: 5.464798413e-28 | K58: 0.007303458539 | L58: 2.025190919e-37 | M58: 0 | N58: 5.589296494e-40
A59: -52 | B59: 0.1713817997 | C59: 0.1524051527 | D59: 0.01897664703 | E59: 0.1524051527 | F59: 8.159722756e-25 | G59: 0 | H59: 3.684082866e-27 | K59: 0.01897664703 | L59: 1.968449431e-36 | M59: 0 | N59: 5.621906948e-39
A60: -51 | B60: 0.1589120893 | C60: 0.1174632814 | D60: 0.04144880783 | E60: 0.1174632814 | F60: 5.143255073e-24 | G60: 0 | H60: 2.408338976e-26 | K60: 0.04144880783 | L60: 1.855082189e-35 | M60: 0 | N60: 5.483314271e-38
A61: -50 | B61: 0.1522075712 | C61: 0.07610378558 | D61: 0.07610378558 | E61: 0.07610378558 | F61: 3.142984173e-23 | G61: 0 | H61: 1.526647666e-25 | K61: 0.07610378558 | L61: 1.695042636e-34 | M61: 0 | N61: 5.186036899e-37
A62: -49 | B62: 0.1589120893 | C62: 0.04144880783 | D62: 0.1174632814 | E62: 0.04144880783 | F62: 1.862017764e-22 | G62: 0 | H62: 9.384108098e-25 | K62: 0.1174632814 | L62: 1.501670182e-33 | M62: 0 | N62: 4.756210279e-36
A63: -48 | B63: 0.1713817997 | C63: 0.01897664703 | D63: 0.1524051527 | E63: 0.01897664703 | F63: 1.069445726e-21 | G63: 0 | H63: 5.593455221e-24 | K63: 0.1524051527 | L63: 1.289860468e-32 | M63: 0 | N63: 4.229796483e-35
A64: -47 | B64: 0.1735294087 | C64: 0.007303458539 | D64: 0.1662259502 | E64: 0.007303458539 | F64: 5.954736619e-21 | G64: 0 | H64: 3.232959836e-23 | K64: 0.1662259502 | L64: 1.074194276e-31 | M64: 0 | N64: 3.647630818e-34
A65: -46 | B65: 0.1547680198 | C65: 0.002362867175 | D65: 0.1524051527 | E65: 0.002362867175 | F65: 3.214330817e-20 | G65: 0 | H65: 1.811980138e-22 | K65: 0.1524051527 | L65: 8.673461052e-31 | M65: 0 | N65: 3.050248771e-33
A66: -45 | B66: 0.1181058977 | C66: 0.0006426162485 | D66: 0.1174632814 | E66: 0.0006426162485 | F66: 1.682045945e-19 | G66: 0 | H66: 9.84780718e-22 | K66: 0.1174632814 | L66: 6.789987668e-30 | M66: 0 | N66: 2.47339014e-32
A67: -44 | B67: 0.07625070045 | C67: 0.0001469148677 | D67: 0.07610378558 | E67: 0.0001469148677 | F67: 8.532949561e-19 | G67: 0 | H67: 5.18989558e-21 | K67: 0.07610378558 | L67: 5.153589534e-29 | M67: 0 | N67: 1.944835931e-31
A68: -43 | B68: 0.04147704242 | C68: 2.823458745e-05 | D68: 0.04144880783 | E68: 2.823458745e-05 | F68: 4.196323976e-18 | G68: 0 | H68: 2.652226948e-20 | K68: 0.04144880783 | L68: 3.79238269e-28 | M68: 0 | N68: 1.482880977e-30
A69: -42 | B69: 0.01898120844 | C69: 4.561406711e-06 | D69: 0.01897664703 | E69: 4.561406711e-06 | F69: 2.000513487e-17 | G69: 0 | H69: 1.314303689e-19 | K69: 0.01897664703 | L69: 2.705658873e-27 | M69: 0 | N69: 1.09638377e-29
A70: -41 | B70: 0.007304078005 | C70: 6.194664646e-07 | D70: 0.007303458539 | E70: 6.194664645e-07 | F70: 9.245073616e-17 | G70: 0 | H70: 6.315587407e-19 | K70: 0.007303458539 | L70: 1.871498127e-26 | M70: 0 | N70: 7.860530952e-29
A71: -40 | B71: 0.002362937894 | C71: 7.071938227e-08 | D71: 0.002362867175 | E71: 7.071938185e-08 | F71: 4.141608737e-16 | G71: 0 | H71: 2.942827145e-18 | K71: 0.002362867175 | L71: 1.25504121e-25 | M71: 0 | N71: 5.464798413e-28
A72: -39 | B72: 0.0006426230352 | C72: 6.786734802e-09 | D72: 0.0006426162485 | E72: 6.786733003e-09 | F72: 1.798500388e-15 | G72: 0 | H72: 1.329684899e-17 | K72: 0.0006426162485 | L72: 8.159722756e-25 | M72: 0 | N72: 3.684082866e-27
A73: -38 | B73: 0.0001469154152 | C73: 5.475083281e-10 | D73: 0.0001469148677 | E73: 5.475007576e-10 | F73: 7.570547535e-15 | G73: 0 | H73: 5.825935868e-17 | K73: 0.0001469148677 | L73: 5.143255073e-24 | M73: 0 | N73: 2.408338976e-26
A74: -37 | B74: 2.823462461e-05 | C74: 3.715964031e-11 | D74: 2.823458745e-05 | E74: 3.712875078e-11 | F74: 3.08895338e-14 | G74: 0 | H74: 2.475230471e-16 | K74: 2.823458745e-05 | L74: 3.142984173e-23 | M74: 0 | N74: 1.526647666e-25
A75: -36 | B75: 4.56140895e-06 | C75: 2.238761289e-12 | D75: =K75+L75+M75 -> 4.561406711e-06 | E75: 2.116594205e-12 | F75: 1.221670843e-13 | G75: 0 | H75: =NORMDIST(A75,$F$8,$F$9,FALSE) -> 1.019761392e-15 | K75: 4.561406711e-06 | L75: 1.862017764e-22 | M75: 0 | N75: 9.384108098e-25
A76: -35 | B76: =C76+D76 -> 6.194670342e-07 | C76: =E76+F76+G76 -> 5.697543898e-13 | D76: 6.194664645e-07 | E76: =NORMDIST(A76,$E$8,$E$9,FALSE) -> 1.014300222e-13 | F76: =(H77-H76)*$F$7 -> 4.683243676e-13 | G76: =-NORMDIST(A76,$G$8,$G$9,FALSE) -> 0 | H76: 4.073938499e-15 | K76: =NORMDIST(A76,$K$8,$K$9,FALSE) -> 6.194664645e-07 | L76: 1.069445726e-21 | M76: =-NORMDIST(A76,$M$8,$M$9,FALSE) -> 0 | N76: =NORMDIST(A76,$L$8,$L$9,FALSE) -> 5.593455221e-24
A77: =A76+1 -> -34 | B77: 7.072112606e-08 | C77: 1.74420621e-12 | D77: 7.071938185e-08 | E77: 4.085988038e-15 | F77: 1.740120222e-12 | G77: 0 | H77: 1.578204769e-14 | K77: 7.071938185e-08 | L77: 5.954736619e-21 | M77: 0 | N77: 3.232959836e-23
A78: -33 | B78: 6.792999876e-09 | C78: 6.266872453e-12 | D78: 6.786733003e-09 | E78: 1.383659769e-16 | F78: 6.266734087e-12 | G78: 0 | H78: 5.928505324e-14 | K78: 6.786733003e-09 | L78: 3.214330817e-20 | M78: 0 | N78: 1.811980138e-22
A79: -32 | B79: 5.693744284e-10 | C79: 2.187367067e-11 | D79: 5.475007577e-10 | E79: 3.938793284e-18 | F79: 2.187366673e-11 | G79: 0 | H79: 2.159534054e-13 | K79: 5.475007576e-10 | L79: 1.682045945e-19 | M79: 0 | N79: 9.84780718e-22
A80: -31 | B80: 1.111247411e-10 | C80: 7.399598945e-11 | D80: 3.712875163e-11 | E80: 9.425376697e-20 | F80: 7.399598936e-11 | G80: 0 | H80: 7.627950736e-13 | K80: 3.712875078e-11 | L80: =(N81-N80)*$L$7 -> 8.532949561e-19 | M80: 0 | N80: 5.18989558e-21
A81: -30 | B81: 2.44715074e-10 | C81: 2.425984756e-10 | D81: 2.116598401e-12 | E81: 1.895989363e-21 | F81: 2.425984756e-10 | G81: 0 | H81: 2.612694807e-12 | K81: 2.116594205e-12 | L81: 4.196323976e-18 | M81: 0 | N81: 2.652226948e-20
A82: -29 | B82: 7.709113018e-10 | C82: 7.708098518e-10 | D82: 1.014500273e-13 | E82: 3.206082761e-23 | F82: 7.708098518e-10 | G82: 0 | H82: 8.677656696e-12 | K82: 1.014300222e-13 | L82: 2.000513487e-17 | M82: 0 | N82: 1.314303689e-19
A83: -28 | B83: 2.373402468e-09 | C83: 2.37339829e-09 | D83: 4.178438774e-15 | E83: 4.557379704e-25 | F83: 2.37339829e-09 | G83: 0 | H83: 2.794790299e-11 | K83: 4.085988038e-15 | L83: 9.245073616e-17 | M83: 0 | N83: 6.315587407e-19
A84: -27 | B84: 7.081770158e-09 | C84: 7.081769606e-09 | D84: 5.525268506e-16 | E84: 5.445745626e-27 | F84: 7.081769606e-09 | G84: 0 | H84: 8.728286024e-11 | K84: 1.383659769e-16 | L84: 4.141608737e-16 | M84: 0 | N84: 2.942827145e-18
A85: -26 | B85: 2.047590121e-08 | C85: 2.047589941e-08 | D85: 1.802439181e-15 | E85: 5.470174003e-29 | F85: 2.047589941e-08 | G85: 0 | H85: 2.643271004e-10 | K85: 3.938793284e-18 | L85: 1.798500388e-15 | M85: 0 | N85: 1.329684899e-17
A86: -25 | B86: 5.736604784e-08 | C86: 5.736604027e-08 | D86: 7.570641789e-15 | E86: 4.618985336e-31 | F86: 5.736604027e-08 | G86: 0 | H86: 7.762245855e-10 | K86: 9.425376697e-20 | L86: 7.570547535e-15 | M86: 0 | N86: 5.825935868e-17
A87: -24 | B87: 1.557243267e-07 | C87: 1.557242958e-07 | D87: 3.088953569e-14 | E87: 3.278639586e-33 | F87: 1.557242958e-07 | G87: 0 | H87: 2.210375592e-09 | K87: 1.895989363e-21 | L87: 3.08895338e-14 | M87: 0 | N87: 2.475230471e-16
A88: -23 | B88: 4.095666532e-07 | C88: 4.09566531e-07 | D88: 1.221670843e-13 | E88: 1.956331399e-35 | F88: 4.09566531e-07 | G88: 0 | H88: 6.103482989e-09 | K88: 3.206082761e-23 | L88: 1.221670843e-13 | M88: 0 | N88: 1.019761392e-15
A89: -22 | B89: 1.043600021e-06 | C89: 1.043599553e-06 | D89: 4.683243676e-13 | E89: 9.812797237e-38 | F89: 1.043599553e-06 | G89: 0 | H89: 1.634264626e-08 | K89: 4.557379704e-25 | L89: 4.683243676e-13 | M89: 0 | N89: 4.073938499e-15
A90: -21 | B90: 2.57606731e-06 | C90: 2.57606557e-06 | D90: 1.740120222e-12 | E90: 4.137565454e-40 | F90: 2.57606557e-06 | G90: 0 | H90: 4.243263509e-08 | K90: 5.445745626e-27 | L90: 1.740120222e-12 | M90: 0 | N90: 1.578204769e-14
A91: -20 | B91: 6.159754695e-06 | C91: 6.159748428e-06 | D91: 6.266734087e-12 | E91: 1.466555766e-42 | F91: 6.159748428e-06 | G91: 0 | H91: 1.068342743e-07 | K91: 5.470174003e-29 | L91: 6.266734087e-12 | M91: 0 | N91: 5.928505324e-14
A92: -19 | B92: 1.426654907e-05 | C92: 1.42665272e-05 | D92: 2.187366673e-11 | E92: 4.369723313e-45 | F92: 1.42665272e-05 | G92: 0 | H92: 2.60827985e-07 | K92: 4.618985336e-31 | L92: 2.187366673e-11 | M92: 0 | N92: 2.159534054e-13
A93: -18 | B93: 3.200267593e-05 | C93: 3.200260193e-05 | D93: 7.399598936e-11 | E93: 1.094487858e-47 | F93: 3.200260193e-05 | G93: 0 | H93: 6.17491165e-07 | K93: 3.278639586e-33 | L93: 7.399598936e-11 | M93: 0 | N93: 7.627950736e-13
A94: -17 | B94: 6.952224524e-05 | C94: 6.952200264e-05 | D94: 2.425984756e-10 | E94: 2.304462312e-50 | F94: 6.952200264e-05 | G94: 0 | H94: 1.417556213e-06 | K94: 1.956331399e-35 | L94: 2.425984756e-10 | M94: 0 | N94: 2.612694807e-12
A95: -16 | B95: 0.0001462462767 | C95: 0.0001462455059 | D95: 7.708098518e-10 | E95: 4.078776649e-53 | F95: 0.0001462455059 | G95: 0 | H95: 3.155606279e-06 | K95: 9.812797237e-38 | L95: 7.708098518e-10 | M95: 0 | N95: 8.677656696e-12
A96: -15 | B96: 0.0002978633643 | C96: 0.0002978609909 | D96: 2.37339829e-09 | E96: 6.068647207e-56 | F96: 0.0002978609909 | G96: 0 | H96: 6.811743927e-06 | K96: 4.137565454e-40 | L96: 2.37339829e-09 | M96: 0 | N96: 2.794790299e-11
A97: -14 | B97: 0.0005873022678 | C97: 0.000587295186 | D97: 7.081769606e-09 | E97: 7.590240035e-59 | F97: 0.000587295186 | G97: 0 | H97: 1.42582687e-05 | K97: 1.466555766e-42 | L97: 7.081769606e-09 | M97: 0 | N97: 8.728286024e-11
A98: -13 | B98: 0.001120861259 | C98: 0.001120840783 | D98: 2.047589941e-08 | E98: 7.980328741e-62 | F98: 0.001120840783 | G98: 0 | H98: 2.894064835e-05 | K98: 4.369723313e-45 | L98: 2.047589941e-08 | M98: 0 | N98: 2.643271004e-10
A99: -12 | B99: 0.002070197146 | C99: 0.00207013978 | D99: 5.736604027e-08 | E99: 7.053224479e-65 | F99: 0.00207013978 | G99: 0 | H99: 5.696166793e-05 | K99: 1.094487858e-47 | L99: 5.736604027e-08 | M99: 0 | N99: 7.762245855e-10
A100: -11 | B100: 0.00369959637 | C100: 0.003699440646 | D100: 1.557242958e-07 | E100: 5.240301595e-68 | F100: 0.003699440646 | G100: 0 | H100: 0.0001087151624 | K100: 2.304462312e-50 | L100: 1.557242958e-07 | M100: 0 | N100: 2.210375592e-09
A101: -10 | B101: 0.006395577981 | C101: 0.006395168414 | D101: 4.09566531e-07 | E101: 3.272853092e-71 | F101: 0.006395168414 | G101: 0 | H101: 0.0002012011786 | K101: 4.078776649e-53 | L101: 4.09566531e-07 | M101: 0 | N101: 6.103482989e-09
A102: -9 | B102: 0.01069232826 | C102: 0.01069128466 | D102: 1.043599553e-06 | E102: 1.718297638e-74 | F102: 0.01069128466 | G102: 0 | H102: 0.0003610803889 | K102: 6.068647207e-56 | L102: 1.043599553e-06 | M102: 0 | N102: 1.634264626e-08
A103: -8 | B103: 0.01728211131 | C103: 0.01727953524 | D103: 2.57606557e-06 | E103: 7.583539044e-78 | F103: 0.01727953524 | G103: -1.413337701e-298 | H103: 0.0006283625055 | K103: 7.590240035e-59 | L103: 2.57606557e-06 | M103: 0 | N103: 4.243263509e-08
A104: -7 | B104: 0.02699571119 | C104: 0.02698955145 | D104: 6.159748428e-06 | E104: 2.813501256e-81 | F104: 0.02698955145 | G104: -5.838930143e-288 | H104: 0.001060350887 | K104: 7.980328741e-62 | L104: 6.159748428e-06 | M104: 0 | N104: 1.068342743e-07
A105: -6 | B105: 0.04073600818 | C105: 0.04072174166 | D105: 1.42665272e-05 | E105: 8.774531799e-85 | F105: 0.04072174166 | G105: -1.546681337e-277 | H105: 0.001735089673 | K105: 7.053224479e-65 | L105: 1.42665272e-05 | M105: 0 | N105: 2.60827985e-07
A106: -5 | B106: 0.05935040208 | C106: 0.05931839948 | D106: 3.200260193e-05 | E106: 2.300395151e-88 | F106: 0.05931839948 | G106: -2.626930851e-267 | H106: 0.002753133214 | K106: 5.240301595e-68 | L106: 3.200260193e-05 | M106: 0 | N106: 6.17491165e-07
A107: -4 | B107: 0.08343725523 | C107: 0.08336773323 | D107: 6.952200264e-05 | E107: 5.069703811e-92 | F107: 0.08336773323 | G107: -2.860728662e-257 | H107: 0.004236093201 | K107: 3.272853092e-71 | L107: 6.952200264e-05 | M107: 0 | N107: 1.417556213e-06
A108: -3 | B108: 0.1130988192 | C108: 0.1129525737 | D108: 0.0001462455059 | E108: 9.392136231e-96 | F108: 0.1129525737 | G108: -1.997491425e-247 | H108: 0.006320286532 | K108: 1.718297638e-74 | L108: 0.0001462455059 | M108: -1.413337701e-298 | N108: 3.155606279e-06
A109: -2 | B109: 0.1476766033 | C109: 0.1473787423 | D109: 0.0002978609909 | E109: 1.462674978e-99 | F109: 0.1473787423 | G109: -8.942797782e-238 | H109: 0.009144100874 | K109: 7.583539044e-78 | L109: 0.0002978609909 | M109: -5.838930143e-288 | N109: 6.811743927e-06
A110: -1 | B110: 0.1855297024 | C110: 0.1849424072 | D110: 0.000587295186 | E110: 1.914841948e-103 | F110: 0.1849424072 | G110: -2.567096103e-228 | H110: 0.01282856943 | K110: 2.813501256e-81 | L110: 0.000587295186 | M110: -1.546681337e-277 | N110: 1.42582687e-05
A111: 0 | B111: 0.2239338087 | C111: 0.2228129679 | D111: 0.001120840783 | E111: 2.107267584e-107 | F111: 0.2228129679 | G111: -4.724883174e-219 | H111: 0.01745212961 | K111: 8.774531799e-85 | L111: 0.001120840783 | M111: -2.626930851e-267 | N111: 2.894064835e-05
A112: 1 | B112: 0.2591786918 | C112: 0.257108552 | D112: 0.00207013978 | E112: 1.949432007e-111 | F112: 0.257108552 | G112: -5.575967737e-210 | H112: 0.02302245381 | K112: 2.300395151e-88 | L112: 0.00207013978 | M112: -2.860728662e-257 | N112: 5.696166793e-05
A113: 2 | B113: 0.2869170926 | C113: 0.2832176519 | D113: 0.003699440646 | E113: 1.515996333e-115 | F113: 0.2832176519 | G113: -4.219195605e-201 | H113: 0.02945016761 | K113: 5.069703811e-92 | L113: 0.003699440646 | M113: -1.997491425e-247 | N113: 0.0001087151624
A114: 3 | B114: 0.3027666804 | C114: 0.296371512 | D114: 0.006395168414 | E114: 9.91036983e-120 | F114: 0.296371512 | G114: -2.04700686e-192 | H114: 0.03653060891 | K114: 9.392136231e-96 | L114: 0.006395168414 | M114: -8.942797782e-238 | N114: 0.0002012011786
A115: 4 | B115: 0.3030966543 | C115: 0.2924053696 | D115: 0.01069128466 | E115: 5.446070071e-124 | F115: 0.2924053696 | G115: -6.367796361e-184 | H115: 0.04393989671 | K115: 1.462674978e-99 | L115: 0.01069128466 | M115: -2.567096103e-228 | N115: 0.0003610803889
A116: 5 | B116: 0.2858589286 | C116: 0.2685793933 | D116: 0.01727953524 | E116: 2.515812326e-128 | F116: 0.2685793933 | G116: -1.270103945e-175 | H116: 0.05125003095 | K116: 1.914841948e-103 | L116: 0.01727953524 | M116: -4.724883174e-219 | N116: 0.0006283625055
A117: 6 | B117: 0.2512736834 | C117: 0.2242841319 | D117: 0.02698955145 | E117: 9.769557846e-133 | F117: 0.2242841319 | G117: -1.624312528e-167 | H117: 0.05796451578 | K117: 2.107267584e-107 | L117: 0.02698955145 | M117: -5.575967737e-210 | N117: 0.001060350887
A118: 7 | B118: 0.2021721456 | C118: 0.1614504039 | D118: 0.04072174166 | E118: 3.18913739e-137 | F118: 0.1614504039 | G118: -1.331926173e-159 | H118: 0.06357161908 | K118: 1.949432007e-111 | L118: 0.04072174166 | M118: -4.219195605e-201 | N118: 0.001735089673
A119: 8 | B119: 0.1438478887 | C119: 0.08452948926 | D119: 0.05931839948 | E119: 8.751312703e-142 | F119: 0.08452948926 | G119: -7.002787412e-152 | H119: 0.06760787918 | K119: 1.515996333e-115 | L119: 0.05931839948 | M119: -2.04700686e-192 | N119: 0.002753133214
A120: 9 | B120: 0.08336773323 | C120: -2.340519175e-144 | D120: 0.08336773323 | E120: 2.018714153e-146 | F120: 0 | G120: -2.360706317e-144 | H120: 0.06972111641 | K120: 9.91036983e-120 | L120: 0.08336773323 | M120: -6.367796361e-184 | N120: 0.004236093201
A121: 10 | B121: 0.02842308441 | C121: -0.08452948926 | D121: 0.1129525737 | E121: 3.914516301e-151 | F121: -0.08452948926 | G121: -5.102619824e-137 | H121: 0.06972111641 | K121: 5.446070071e-124 | L121: 0.1129525737 | M121: -1.270103945e-175 | N121: 0.006320286532
A122: 11 | B122: -0.01407166158 | C122: -0.1614504039 | D122: 0.1473787423 | E122: 6.380916129e-156 | F122: -0.1614504039 | G122: -7.071714064e-130 | H122: 0.06760787918 | K122: 2.515812326e-128 | L122: 0.1473787423 | M122: -1.624312528e-167 | N122: 0.009144100874
A123: 12 | B123: -0.03934172473 | C123: -0.2242841319 | D123: 0.1849424072 | E123: 8.743586667e-161 | F123: -0.2242841319 | G123: -6.284003274e-123 | H123: 0.06357161908 | K123: 9.769557846e-133 | L123: 0.1849424072 | M123: -1.331926173e-159 | N123: 0.01282856943
A124: 13 | B124: -0.04576642544 | C124: -0.2685793933 | D124: 0.2228129679 | E124: 1.007158574e-165 | F124: -0.2685793933 | G124: -3.580373577e-116 | H124: 0.05796451578 | K124: 3.18913739e-137 | L124: 0.2228129679 | M124: -7.002787412e-152 | N124: 0.01745212961
A125: 14 | B125: -0.03529681764 | C125: -0.2924053696 | D125: 0.257108552 | E125: 9.752315486e-171 | F125: -0.2924053696 | G125: -1.307978226e-109 | H125: 0.05125003095 | K125: 8.751312703e-142 | L125: 0.257108552 | M125: -2.360706317e-144 | N125: 0.02302245381
A126: 15 | B126: -0.01315386008 | C126: -0.296371512 | D126: 0.2832176519 | E126: 7.938149658e-176 | F126: -0.296371512 | G126: -3.063747117e-103 | H126: 0.04393989671 | K126: 2.018714153e-146 | L126: 0.2832176519 | M126: -5.102619824e-137 | N126: 0.02945016761
A127: 16 | B127: 0.01315386008 | C127: -0.2832176519 | D127: 0.296371512 | E127: 5.431658724e-181 | F127: -0.2832176519 | G127: -4.601352947e-97 | H127: 0.03653060891 | K127: 3.914516301e-151 | L127: 0.296371512 | M127: -7.071714064e-130 | N127: 0.03653060891
A128: 17 | B128: 0.03529681764 | C128: -0.257108552 | D128: 0.2924053696 | E128: 3.12426109e-186 | F128: -0.257108552 | G128: -4.430965911e-91 | H128: 0.02945016761 | K128: 6.380916129e-156 | L128: 0.2924053696 | M128: -6.284003274e-123 | N128: 0.04393989671
A129: 18 | B129: 0.04576642544 | C129: -0.2228129679 | D129: 0.2685793933 | E129: 1.51064987e-191 | F129: -0.2228129679 | G129: -2.735845077e-85 | H129: 0.02302245381 | K129: 8.743586667e-161 | L129: 0.2685793933 | M129: -3.580373577e-116 | N129: 0.05125003095
A130: 19 | B130: 0.03934172473 | C130: -0.1849424072 | D130: 0.2242841319 | E130: 6.140192229e-197 | F130: -0.1849424072 | G130: -1.083090691e-79 | H130: 0.01745212961 | K130: 1.007158574e-165 | L130: 0.2242841319 | M130: -1.307978226e-109 | N130: 0.05796451578
A131: 20 | B131: 0.01407166158 | C131: -0.1473787423 | D131: 0.1614504039 | E131: 2.097982059e-202 | F131: -0.1473787423 | G131: -2.749276221e-74 | H131: 0.01282856943 | K131: 9.752315486e-171 | L131: 0.1614504039 | M131: -3.063747117e-103 | N131: 0.06357161908
A132: 21 | B132: -0.02842308441 | C132: -0.1129525737 | D132: 0.08452948926 | E132: 6.025918103e-208 | F132: -0.1129525737 | G132: -4.474578779e-69 | H132: 0.009144100874 | K132: 7.938149658e-176 | L132: 0.08452948926 | M132: -4.601352947e-97 | N132: 0.06760787918
A133: 22 | B133: -0.08336773323 | C133: -0.08336773323 | D133: -4.430965911e-91 | E133: 1.454944182e-213 | F133: -0.08336773323 | G133: -4.669454756e-64 | H133: 0.006320286532 | K133: 5.431658724e-181 | L133: 0 | M133: -4.430965911e-91 | N133: 0.06972111641
A134: 23 | B134: -0.1438478887 | C134: -0.05931839948 | D134: -0.08452948926 | E134: 2.953051984e-219 | F134: -0.05931839948 | G134: -3.124355295e-59 | H134: 0.004236093201 | K134: 3.12426109e-186 | L134: -0.08452948926 | M134: -2.735845077e-85 | N134: 0.06972111641
A135: 24 | B135: -0.2021721456 | C135: -0.04072174166 | D135: -0.1614504039 | E135: 5.038456394e-225 | F135: -0.04072174166 | G135: -1.340401449e-54 | H135: 0.002753133214 | K135: 1.51064987e-191 | L135: -0.1614504039 | M135: -1.083090691e-79 | N135: 0.06760787918
A136: 25 | B136: -0.2512736834 | C136: -0.02698955145 | D136: -0.2242841319 | E136: 7.226459432e-231 | F136: -0.02698955145 | G136: -3.6871397e-50 | H136: 0.001735089673 | K136: 6.140192229e-197 | L136: -0.2242841319 | M136: -2.749276221e-74 | N136: 0.06357161908
A137: 26 | B137: -0.2858589286 | C137: -0.01727953524 | D137: -0.2685793933 | E137: 8.712750669e-237 | F137: -0.01727953524 | G137: -6.503161311e-46 | H137: 0.001060350887 | K137: 2.097982059e-202 | L137: -0.2685793933 | M137: -4.474578779e-69 | N137: 0.05796451578
A138: 27 | B138: -0.3030966543 | C138: -0.01069128466 | D138: -0.2924053696 | E138: 8.830527669e-243 | F138: -0.01069128466 | G138: -7.354272049e-42 | H138: 0.0006283625055 | K138: 6.025918103e-208 | L138: -0.2924053696 | M138: -4.669454756e-64 | N138: 0.05125003095
A139: 28 | B139: -0.3027666804 | C139: -0.006395168414 | D139: =K139+L139+M139 -> -0.296371512 | E139: 7.52349571e-249 | F139: -0.006395168414 | G139: -5.332551838e-38 | H139: =NORMDIST(A139,$F$8,$F$9,FALSE) -> 0.0003610803889 | K139: 1.454944182e-213 | L139: -0.296371512 | M139: -3.124355295e-59 | N139: 0.04393989671
A140: 29 | B140: =C140+D140 -> -0.2869170926 | C140: =E140+F140+G140 -> -0.003699440646 | D140: -0.2832176519 | E140: =NORMDIST(A140,$E$8,$E$9,FALSE) -> 5.388332066e-255 | F140: =(H141-H140)*$F$7 -> -0.003699440646 | G140: =-NORMDIST(A140,$G$8,$G$9,FALSE) -> -2.479195134e-34 | H140: 0.0002012011786 | K140: =NORMDIST(A140,$K$8,$K$9,FALSE) -> 2.953051984e-219 | L140: -0.2832176519 | M140: =-NORMDIST(A140,$M$8,$M$9,FALSE) -> -1.340401449e-54 | N140: =NORMDIST(A140,$L$8,$L$9,FALSE) -> 0.03653060891
A141: =A140+1 -> 30 | B141: -0.2591786918 | C141: -0.00207013978 | D141: -0.257108552 | E141: 3.244073453e-261 | F141: -0.00207013978 | G141: -7.390376537e-31 | H141: 0.0001087151624 | K141: 5.038456394e-225 | L141: -0.257108552 | M141: -3.6871397e-50 | N141: 0.02945016761
A142: 31 | B142: -0.2239338087 | C142: -0.001120840783 | D142: -0.2228129679 | E142: 1.641831782e-267 | F142: -0.001120840783 | G142: -1.412546169e-27 | H142: 5.696166793e-05 | K142: 7.226459432e-231 | L142: -0.2228129679 | M142: -6.503161311e-46 | N142: 0.02302245381
A143: 32 | B143: -0.1855297024 | C143: -0.000587295186 | D143: -0.1849424072 | E143: 6.985030233e-274 | F143: -0.000587295186 | G143: -1.731087289e-24 | H143: 2.894064835e-05 | K143: 8.712750669e-237 | L143: -0.1849424072 | M143: -7.354272049e-42 | N143: 0.01745212961
A144: 33 | B144: -0.1476766033 | C144: -0.0002978609909 | D144: -0.1473787423 | E144: 2.498098591e-280 | F144: -0.0002978609909 | G144: -1.360239911e-21 | H144: 1.42582687e-05 | K144: 8.830527669e-243 | L144: =(N145-N144)*$L$7 -> -0.1473787423 | M144: -5.332551838e-38 | N144: 0.01282856943
A145: 34 | B145: -0.1130988192 | C145: -0.0001462455059 | D145: -0.1129525737 | E145: 7.51021744e-287 | F145: -0.0001462455059 | G145: -6.853182381e-19 | H145: 6.811743927e-06 | K145: 7.52349571e-249 | L145: -0.1129525737 | M145: -2.479195134e-34 | N145: 0.009144100874
A146: 35 | B146: -0.08343725523 | C146: -6.952200264e-05 | D146: -0.08336773323 | E146: 1.898003899e-293 | F146: -6.952200264e-05 | G146: -2.21385563e-16 | H146: 3.155606279e-06 | K146: 5.388332066e-255 | L146: -0.08336773323 | M146: -7.390376537e-31 | N146: 0.006320286532
A147: 36 | B147: -0.05935040208 | C147: -3.200260198e-05 | D147: -0.05931839948 | E147: 4.032211852e-300 | F147: -3.200260193e-05 | G147: -4.585498261e-14 | H147: 1.417556213e-06 | K147: 3.244073453e-261 | L147: -0.05931839948 | M147: -1.412546169e-27 | N147: 0.004236093201
A148: 37 | B148: -0.04073600819 | C148: -1.426653329e-05 | D148: -0.04072174166 | E148: 7.200973885e-307 | F148: -1.42665272e-05 | G148: -6.089813606e-12 | H148: 6.17491165e-07 | K148: 1.641831782e-267 | L148: -0.04072174166 | M148: -1.731087289e-24 | N148: 0.002753133214
A149: 38 | B149: -0.02699571171 | C149: -6.160266991e-06 | D149: -0.02698955145 | E149: 0 | F149: -6.159748428e-06 | G149: -5.185632045e-10 | H149: 2.60827985e-07 | K149: 6.985030233e-274 | L149: -0.02698955145 | M149: -1.360239911e-21 | N149: 0.001735089673
A150: 39 | B150: -0.01728213962 | C150: -2.604378162e-06 | D150: -0.01727953524 | E150: 0 | F150: -2.57606557e-06 | G150: -2.831259164e-08 | H150: 1.068342743e-07 | K150: 2.498098591e-280 | L150: -0.01727953524 | M150: -6.853182381e-19 | N150: 0.001060350887
A151: 40 | B151: -0.01069331941 | C151: -2.034745896e-06 | D151: -0.01069128466 | E151: 0 | F151: -1.043599553e-06 | G151: -9.911463432e-07 | H151: 4.243263509e-08 | K151: 7.51021744e-287 | L151: -0.01069128466 | M151: -2.21385563e-16 | N151: 0.0006283625055
A152: 41 | B152: -0.006417825222 | C152: -2.265680813e-05 | D152: -0.006395168414 | E152: 0 | F152: -4.09566531e-07 | G152: -2.22472416e-05 | H152: 1.634264626e-08 | K152: 1.898003899e-293 | L152: -0.006395168414 | M152: -4.585498261e-14 | N152: 0.0003610803889
A153: 42 | B153: -0.004019776811 | C153: -0.0003203361587 | D153: -0.003699440652 | E153: 0 | F153: -1.557242958e-07 | G153: -0.0003201804344 | H153: 6.103482989e-09 | K153: 4.032211852e-300 | L153: -0.003699440646 | M153: -6.089813606e-12 | N153: 0.0002012011786
A154: 43 | B154: -0.005024763272 | C154: -0.002954622974 | D154: -0.002070140298 | E154: 0 | F154: -5.736604027e-08 | G154: -0.002954565608 | H154: 2.210375592e-09 | K154: 7.200973885e-307 | L154: -0.00207013978 | M154: -5.185632045e-10 | N154: 0.0001087151624
A155: 44 | B155: -0.01860214897 | C155: -0.01748127987 | D155: -0.001120869096 | E155: 0 | F155: -2.047589941e-08 | G155: -0.0174812594 | H155: 7.762245855e-10 | K155: 0 | L155: -0.001120840783 | M155: -2.831259164e-08 | N155: 5.696166793e-05
A156: 45 | B156: -0.06690638594 | C156: -0.06631809961 | D156: -0.0005882863324 | E156: 0 | F156: -7.081769606e-09 | G156: -0.06631809253 | H156: 2.643271004e-10 | K156: 0 | L156: -0.000587295186 | M156: -9.911463432e-07 | N156: 2.894064835e-05
A157: 46 | B157: -0.161633927 | C157: -0.1613138187 | D157: -0.0003201082325 | E157: 0 | F157: -2.37339829e-09 | G157: -0.1613138163 | H157: 8.728286024e-11 | K157: 0 | L157: -0.0002978609909 | M157: -2.22472416e-05 | N157: 1.42582687e-05
A158: 47 | B158: -0.2520552452 | C158: -0.2515888192 | D158: -0.0004664259403 | E158: 0 | F158: -7.708098518e-10 | G158: -0.2515888185 | H158: 2.794790299e-11 | K158: 0 | L158: -0.0001462455059 | M158: -0.0003201804344 | N158: 6.811743927e-06
A159: 48 | B159: -0.2546129063 | C159: -0.2515888187 | D159: -0.003024087611 | E159: 0 | F159: -2.425984756e-10 | G159: -0.2515888185 | H159: 8.677656696e-12 | K159: 0 | L159: -6.952200264e-05 | M159: -0.002954565608 | N159: 3.155606279e-06
A160: 49 | B160: -0.1788270784 | C160: -0.1613138164 | D160: -0.017513262 | E160: 0 | F160: -7.399598936e-11 | G160: -0.1613138163 | H160: 2.612694807e-12 | K160: 0 | L160: -3.200260193e-05 | M160: -0.0174812594 | N160: 1.417556213e-06
A161: 50 | B161: -0.1326504516 | C161: -0.06631809255 | D161: -0.06633235906 | E161: 0 | F161: -2.187366673e-11 | G161: -0.06631809253 | H161: 7.627950736e-13 | K161: 0 | L161: -1.42665272e-05 | M161: -0.06631809253 | N161: 6.17491165e-07
A162: 51 | B162: -0.1788012355 | C162: -0.0174812594 | D162: -0.1613199761 | E162: 0 | F162: -6.266734087e-12 | G162: -0.0174812594 | H162: 2.159534054e-13 | K162: 0 | L162: -6.159748428e-06 | M162: -0.1613138163 | N162: 2.60827985e-07
A163: 52 | B163: -0.2545459601 | C163: -0.00295456561 | D163: -0.2515913945 | E163: 0 | F163: -1.740120222e-12 | G163: -0.002954565608 | H163: 5.928505324e-14 | K163: 0 | L163: -2.57606557e-06 | M163: -0.2515888185 | N163: 1.068342743e-07
A164: 53 | B164: -0.2519100425 | C164: -0.0003201804349 | D164: -0.2515898621 | E164: 0 | F164: -4.683243676e-13 | G164: -0.0003201804344 | H164: 1.578204769e-14 | K164: 0 | L164: -1.043599553e-06 | M164: -0.2515888185 | N164: 4.243263509e-08
A165: 54 | B165: -0.1613364732 | C165: -2.224724172e-05 | D165: -0.1613142259 | E165: 0 | F165: -1.221670843e-13 | G165: -2.22472416e-05 | H165: 4.073938499e-15 | K165: 0 | L165: -4.09566531e-07 | M165: -0.1613138163 | N165: 1.634264626e-08
A166: 55 | B166: -0.0663192394 | C166: -9.91146374e-07 | D166: -0.06631824825 | E166: 0 | F166: -3.08895338e-14 | G166: -9.911463432e-07 | H166: 1.019761392e-15 | K166: 0 | L166: -1.557242958e-07 | M166: -0.06631809253 | N166: 6.103482989e-09
A167: 56 | B167: -0.01748134507 | C167: -2.831259921e-08 | D167: -0.01748131676 | E167: 0 | F167: -7.570547535e-15 | G167: -2.831259164e-08 | H167: 2.475230471e-16 | K167: 0 | L167: -5.736604027e-08 | M167: -0.0174812594 | N167: 2.210375592e-09
A168: 57 | B168: -0.002954586602 | C168: -5.18565003e-10 | D168: -0.002954586084 | E168: 0 | F168: -1.798500388e-15 | G168: -5.185632045e-10 | H168: 5.825935868e-17 | K168: 0 | L168: -2.047589941e-08 | M168: -0.002954565608 | N168: 7.762245855e-10
A169: 58 | B169: -0.0003201875223 | C169: -6.090227766e-12 | D169: -0.0003201875162 | E169: 0 | F169: -4.141608737e-16 | G169: -6.089813606e-12 | H169: 1.329684899e-17 | K169: 0 | L169: -7.081769606e-09 | M169: -0.0003201804344 | N169: 2.643271004e-10
A170: 59 | B170: -2.224961504e-05 | C170: -4.594743334e-14 | D170: -2.2249615e-05 | E170: 0 | F170: -9.245073616e-17 | G170: -4.585498261e-14 | H170: 2.942827145e-18 | K170: 0 | L170: -2.37339829e-09 | M170: -2.22472416e-05 | N170: 8.728286024e-11
A171: 60 | B171: -9.919171532e-07 | C171: -2.413906979e-16 | D171: -9.91917153e-07 | E171: 0 | F171: -2.000513487e-17 | G171: -2.21385563e-16 | H171: 6.315587407e-19 | K171: 0 | L171: -7.708098518e-10 | M171: -9.911463432e-07 | N171: 2.794790299e-11
A172: 61 | B172: -2.855519012e-08 | C172: -4.881642214e-18 | D172: -2.855519012e-08 | E172: 0 | F172: -4.196323976e-18 | G172: -6.853182381e-19 | H172: 1.314303689e-19 | K172: 0 | L172: -2.425984756e-10 | M172: -2.831259164e-08 | N172: 8.677656696e-12
A173: 62 | B173: -5.925591947e-10 | C173: -8.54655196e-19 | D173: -5.925591939e-10 | E173: 0 | F173: -8.532949561e-19 | G173: -1.360239911e-21 | H173: 2.652226948e-20 | K173: 0 | L173: -7.399598936e-11 | M173: -5.185632045e-10 | N173: 2.612694807e-12
A174: 63 | B174: -2.79634805e-11 | C174: -1.682063256e-19 | D174: -2.796348033e-11 | E174: 0 | F174: -1.682045945e-19 | G174: -1.731087289e-24 | H174: 5.18989558e-21 | K174: 0 | L174: -2.187366673e-11 | M174: -6.089813606e-12 | N174: 7.627950736e-13
A175: 64 | B175: -6.312589102e-12 | C175: -3.214330958e-20 | D175: -6.312589069e-12 | E175: 0 | F175: -3.214330817e-20 | G175: -1.412546169e-27 | H175: 9.84780718e-22 | K175: 0 | L175: -6.266734087e-12 | M175: -4.585498261e-14 | N175: 2.159534054e-13
A176: 65 | B176: -1.740341613e-12 | C176: -5.95473662e-21 | D176: -1.740341607e-12 | E176: 0 | F176: -5.954736619e-21 | G176: -7.390376537e-31 | H176: 1.811980138e-22 | K176: 0 | L176: -1.740120222e-12 | M176: -2.21385563e-16 | N176: 5.928505324e-14
A177: 66 | B177: -4.68325054e-13 | C177: -1.069445726e-21 | D177: -4.68325053e-13 | E177: 0 | F177: -1.069445726e-21 | G177: -2.479195134e-34 | H177: 3.232959836e-23 | K177: 0 | L177: -4.683243676e-13 | M177: -6.853182381e-19 | N177: 1.578204769e-14
A178: 67 | B178: -1.221670858e-13 | C178: -1.862017764e-22 | D178: -1.221670857e-13 | E178: 0 | F178: -1.862017764e-22 | G178: -5.332551838e-38 | H178: 5.593455221e-24 | K178: 0 | L178: -1.221670843e-13 | M178: -1.360239911e-21 | N178: 4.073938499e-15
A179: 68 | B179: -3.088953383e-14 | C179: -3.142984173e-23 | D179: -3.08895338e-14 | E179: 0 | F179: -3.142984173e-23 | G179: -7.354272049e-42 | H179: 9.384108098e-25 | K179: 0 | L179: -3.08895338e-14 | M179: -1.731087289e-24 | N179: 1.019761392e-15
A180: 69 | B180: -7.570547541e-15 | C180: -5.143255073e-24 | D180: -7.570547535e-15 | E180: 0 | F180: -5.143255073e-24 | G180: -6.503161311e-46 | H180: 1.526647666e-25 | K180: 0 | L180: -7.570547535e-15 | M180: -1.412546169e-27 | N180: 2.475230471e-16
A181: 70 | B181: -1.798500389e-15 | C181: -8.159722756e-25 | D181: -1.798500388e-15 | E181: 0 | F181: -8.159722756e-25 | G181: -3.6871397e-50 | H181: 2.408338976e-26 | K181: 0 | L181: -1.798500388e-15 | M181: -7.390376537e-31 | N181: 5.825935868e-17
A182: 71 | B182: -4.141608739e-16 | C182: -1.25504121e-25 | D182: -4.141608737e-16 | E182: 0 | F182: -1.25504121e-25 | G182: -1.340401449e-54 | H182: 3.684082866e-27 | K182: 0 | L182: -4.141608737e-16 | M182: -2.479195134e-34 | N182: 1.329684899e-17
A183: 72 | B183: -9.245073618e-17 | C183: -1.871498127e-26 | D183: -9.245073616e-17 | E183: 0 | F183: -1.871498127e-26 | G183: -3.124355295e-59 | H183: 5.464798413e-28 | K183: 0 | L183: -9.245073616e-17 | M183: -5.332551838e-38 | N183: 2.942827145e-18
A184: 73 | B184: -2.000513488e-17 | C184: -2.705658873e-27 | D184: -2.000513487e-17 | E184: 0 | F184: -2.705658873e-27 | G184: -4.669454756e-64 | H184: 7.860530952e-29 | K184: 0 | L184: -2.000513487e-17 | M184: -7.354272049e-42 | N184: 6.315587407e-19
A185: 74 | B185: -4.196323976e-18 | C185: -3.79238269e-28 | D185: -4.196323976e-18 | E185: 0 | F185: -3.79238269e-28 | G185: -4.474578779e-69 | H185: 1.09638377e-29 | K185: 0 | L185: -4.196323976e-18 | M185: -6.503161311e-46 | N185: 1.314303689e-19
A186: 75 | B186: -8.532949561e-19 | C186: -5.153589534e-29 | D186: -8.532949561e-19 | E186: 0 | F186: -5.153589534e-29 | G186: -2.749276221e-74 | H186: 1.482880977e-30 | K186: 0 | L186: -8.532949561e-19 | M186: -3.6871397e-50 | N186: 2.652226948e-20
A187: 76 | B187: -1.682045945e-19 | C187: -6.789987668e-30 | D187: -1.682045945e-19 | E187: 0 | F187: -6.789987668e-30 | G187: -1.083090691e-79 | H187: 1.944835931e-31 | K187: 0 | L187: -1.682045945e-19 | M187: -1.340401449e-54 | N187: 5.18989558e-21
A188: 77 | B188: -3.214330817e-20 | C188: -8.673461052e-31 | D188: -3.214330817e-20 | E188: 0 | F188: -8.673461052e-31 | G188: -2.735845077e-85 | H188: 2.47339014e-32 | K188: 0 | L188: -3.214330817e-20 | M188: -3.124355295e-59 | N188: 9.84780718e-22
A189: 78 | B189: -5.954736619e-21 | C189: -1.074194276e-31 | D189: -5.954736619e-21 | E189: 0 | F189: -1.074194276e-31 | G189: -4.430965911e-91 | H189: 3.050248771e-33 | K189: 0 | L189: -5.954736619e-21 | M189: -4.669454756e-64 | N189: 1.811980138e-22
A190: 79 | B190: -1.069445726e-21 | C190: -1.289860468e-32 | D190: -1.069445726e-21 | E190: 0 | F190: -1.289860468e-32 | G190: -4.601352947e-97 | H190: 3.647630818e-34 | K190: 0 | L190: -1.069445726e-21 | M190: -4.474578779e-69 | N190: 3.232959836e-23
A191: 80 | B191: -1.862017764e-22 | C191: -1.501670182e-33 | D191: -1.862017764e-22 | E191: 0 | F191: -1.501670182e-33 | G191: -3.063747117e-103 | H191: 4.229796483e-35 | K191: 0 | L191: -1.862017764e-22 | M191: -2.749276221e-74 | N191: 5.593455221e-24
A192: 81 | B192: -3.142984173e-23 | C192: -1.695042636e-34 | D192: -3.142984173e-23 | E192: 0 | F192: -1.695042636e-34 | G192: -1.307978226e-109 | H192: 4.756210279e-36 | K192: 0 | L192: -3.142984173e-23 | M192: -1.083090691e-79 | N192: 9.384108098e-25
A193: 82 | B193: -5.143255073e-24 | C193: -1.855082189e-35 | D193: -5.143255073e-24 | E193: 0 | F193: -1.855082189e-35 | G193: -3.580373577e-116 | H193: 5.186036899e-37 | K193: 0 | L193: -5.143255073e-24 | M193: -2.735845077e-85 | N193: 1.526647666e-25
A194: 83 | B194: -8.159722756e-25 | C194: -1.968449431e-36 | D194: -8.159722756e-25 | E194: 0 | F194: -1.968449431e-36 | G194: -6.284003274e-123 | H194: 5.483314271e-38 | K194: 0 | L194: -8.159722756e-25 | M194: -4.430965911e-91 | N194: 2.408338976e-26
A195: 84 | B195: -1.25504121e-25 | C195: -2.025190919e-37 | D195: -1.25504121e-25 | E195: 0 | F195: -2.025190919e-37 | G195: -7.071714064e-130 | H195: 5.621906948e-39 | K195: 0 | L195: -1.25504121e-25 | M195: -4.601352947e-97 | N195: 3.684082866e-27
A196: 85 | B196: -1.871498127e-26 | C196: -2.020180714e-38 | D196: -1.871498127e-26 | E196: 0 | F196: -2.020180714e-38 | G196: -5.102619824e-137 | H196: 5.589296494e-40 | K196: 0 | L196: -1.871498127e-26 | M196: -3.063747117e-103 | N196: 5.464798413e-28
A197: 86 | B197: -2.705658873e-27 | C197: -1.953884397e-39 | D197: -2.705658873e-27 | E197: 0 | F197: -1.953884397e-39 | G197: -2.360706317e-144 | H197: 5.388447095e-41 | K197: 0 | L197: -2.705658873e-27 | M197: -1.307978226e-109 | N197: 7.860530952e-29
A198: 87 | B198: -3.79238269e-28 | C198: -1.832287756e-40 | D198: -3.79238269e-28 | E198: 0 | F198: -1.832287756e-40 | G198: -7.002787412e-152 | H198: 5.037361032e-42 | K198: 0 | L198: -3.79238269e-28 | M198: -3.580373577e-116 | N198: 1.09638377e-29
A199: 88 | B199: -5.153589534e-29 | C199: -1.666005252e-41 | D199: -5.153589534e-29 | E199: 0 | F199: -1.666005252e-41 | G199: -1.331926173e-159 | H199: 4.566416421e-43 | K199: 0 | L199: -5.153589534e-29 | M199: -6.284003274e-123 | N199: 1.482880977e-30
A200: 89 | B200: -6.789987668e-30 | C200: -1.468752286e-42 | D200: -6.789987668e-30 | E200: 0 | F200: -1.468752286e-42 | G200: -1.624312528e-167 | H200: 4.014032903e-44 | K200: 0 | L200: -6.789987668e-30 | M200: -7.071714064e-130 | N200: 1.944835931e-31
A201: 90 | B201: -8.673461052e-31 | C201: -1.255485815e-43 | D201: -8.673461052e-31 | E201: 0 | F201: -1.255485815e-43 | G201: -1.270103945e-175 | H201: 3.42152189e-45 | K201: 0 | L201: -8.673461052e-31 | M201: -5.102619824e-137 | N201: 2.47339014e-32
A202: 91 | B202: -1.074194276e-31 | C202: -1.040561203e-44 | D202: -1.074194276e-31 | E202: 0 | F202: -1.040561203e-44 | G202: -6.367796361e-184 | H202: 2.828073535e-46 | K202: 0 | L202: -1.074194276e-31 | M202: -2.360706317e-144 | N202: 3.050248771e-33
... 9 more rows
